fUST/lending_fUST_20260128
["ID","MTS","AMOUNT","RATE_DAILY","PERIOD"]
[403779797,1769536241750,-234.857749,0.0002,2]
[403779798,1769536241759,-234.857749,0.0002,2]
[403779799,1769536241769,-234.857749,0.0002,2]
[403779800,1769536241778,-234.857749,0.0002,2]
[403779801,1769536241787,-234.857749,0.0002,2]
[403779802,1769536241796,-234.857749,0.0002,2]
[403779803,1769536241806,-234.857749,0.0002,2]
[403779804,1769536241815,-234.857749,0.0002,2]
[403779805,1769536241825,-234.857749,0.0002,2]
[403779806,1769536241835,-151.0,0.0002,2]
[403779807,1769536241845,-234.857749,0.0002,2]
[403779808,1769536241855,-151.0,0.0002,2]
[403779809,1769536241865,-151.0,0.0002,2]
[403779810,1769536241874,-234.857749,0.0002,2]
[403779811,1769536241884,-151.0,0.0002,2]
[403779812,1769536241894,-151.0,0.0002,2]
[403779813,1769536241904,-234.857749,0.0002,2]
[403779814,1769536241914,-151.0,0.0002,2]
[403779815,1769536241924,-151.0,0.0002,2]
[403779816,1769536241934,-151.0,0.0002,2]
[403779817,1769536241944,-151.0,0.0002,2]
[403779818,1769536241955,-151.0,0.0002,2]
[403779819,1769536241965,-151.0,0.0002,2]
[403779820,1769536241976,-151.0,0.0002,2]
[403779821,1769536241987,-151.0,0.0002,2]
[403779822,1769536241998,-151.0,0.0002,2]
[403779823,1769536242009,-151.0,0.0002,2]
[403779824,1769536242020,-151.0,0.0002,2]
[403779825,1769536242030,-210.913292,0.0002,2]
[403779826,1769536242041,-151.0,0.0002,2]
[403779827,1769536242055,-152.016847,0.0002,2]
[403779828,1769536242068,-230.007319,0.0002,2]
[403779829,1769536242079,-230.007319,0.0002,2]
[403779830,1769536242090,-230.007319,0.0002,2]
[403779831,1769536242102,-230.007319,0.0002,2]
[403779832,1769536242112,-230.007319,0.0002,2]
[403779833,1769536242123,-230.007319,0.0002,2]
[403779834,1769536242131,-230.007319,0.0002,2]
[403779835,1769536242143,-230.007319,0.0002,2]
[403779836,1769536242153,-230.007319,0.0002,2]
[403779837,1769536242162,-230.007319,0.0002,2]
[403779838,1769536242175,-230.007319,0.0002,2]
[403779839,1769536242186,-230.007319,0.0002,2]
[403779840,1769536242196,-230.007319,0.0002,2]
[403779841,1769536242207,-230.007319,0.0002,2]
[403779842,1769536242216,-230.007319,0.0002,2]
[403779846,1769536242226,-230.007319,0.0002,2]
[403779848,1769536242362,-151.0,0.0002,2]
[403779850,1769536242375,-151.0,0.0002,2]
[403779852,1769536242386,-151.0,0.0002,2]
[403779854,1769536242395,-151.0,0.0002,2]
[403779856,1769536242406,-151.0,0.0002,2]
[403779857,1769536242415,-151.0,0.0002,2]
[403779858,1769536242426,-151.0,0.0002,2]
[403779859,1769536242435,-151.0,0.0002,2]
[403779861,1769536242444,-151.0,0.0002,2]
[403779863,1769536242453,-151.0,0.0002,2]
[403779865,1769536242463,-151.0,0.0002,2]
[403779867,1769536242472,-199.423353,0.0002,2]
[403779869,1769536242482,-151.0,0.0002,2]
[403779871,1769536242491,-151.0,0.0002,2]
[403779873,1769536242500,-151.0,0.0002,2]
[403779875,1769536242509,-240.503925,0.0002,2]
[403779877,1769536242518,-151.0,0.0002,2]
[403779880,1769536242528,-151.0,0.0002,2]
[403779883,1769536242536,-151.0,0.0002,2]
[403779886,1769536242546,-151.0,0.0002,2]
[403779888,1769536242555,-151.0,0.0002,2]
[403779890,1769536242565,-151.0,0.0002,2]
[403779891,1769536242575,-151.0,0.0002,2]
[403779892,1769536242584,-151.0,0.0002,2]
[403779893,1769536242595,-151.0,0.0002,2]
[403779895,1769536242604,-151.0,0.0002,2]
[403779897,1769536242613,-151.0,0.0002,2]
[403779898,1769536242622,-151.0,0.0002,2]
[403779899,1769536242632,-151.0,0.0002,2]
[403779900,1769536242642,-151.0,0.0002,2]
[403779901,1769536242652,-151.0,0.0002,2]
[403779902,1769536242662,-151.0,0.0002,2]
[403779903,1769536242671,-151.0,0.0002,2]
[403779904,1769536242681,-194.769016,0.0002,2]
[403779905,1769536242691,-2000.0,0.0002,7]
[403779907,1769536242699,-151.0,0.0002,2]
[403779908,1769536242710,-151.0,0.0002,2]
[403779910,1769536242720,-151.0,0.0002,2]
[403779911,1769536242729,-245.391215,0.0002,2]
[403779912,1769536242738,-151.0,0.0002,2]
[403779913,1769536242747,-151.0,0.0002,2]
[403779914,1769536242756,-252.597039,0.0002,2]
[403779915,1769536242765,-151.0,0.0002,2]
[403779916,1769536242776,-252.597039,0.0002,2]
[403779917,1769536242785,-252.597039,0.0002,2]
[403779918,1769536242796,-287.078315,0.0002,2]
[403779919,1769536242806,-252.597039,0.0002,2]
[403779921,1769536242816,-252.597039,0.0002,2]
[403779922,1769536242827,-252.597039,0.0002,2]
[403779923,1769536242837,-252.597039,0.0002,2]
[403779924,1769536242847,-252.597039,0.0002,2]
[403779925,1769536242858,-252.597039,0.0002,2]
[403779927,1769536242867,-252.597039,0.0002,2]
[403779928,1769536242877,-252.597039,0.0002,2]
[403779929,1769536242887,-252.597039,0.0002,2]
[403779930,1769536242897,-252.597039,0.0002,2]
[403779931,1769536242906,-252.597039,0.0002,2]
[403779932,1769536242916,-252.597039,0.0002,2]
[403779933,1769536242925,-252.597044,0.0002,2]
[403779934,1769536242934,-188.278276,0.0002,2]
[403779935,1769536242944,-209.036747,0.0002,2]
[403779936,1769536242954,-188.278276,0.0002,2]
[403779937,1769536242964,-209.036747,0.0002,2]
[403779938,1769536242973,-188.278276,0.0002,2]
[403779939,1769536242982,-209.036747,0.0002,2]
[403779940,1769536242992,-188.278276,0.0002,2]
[403779941,1769536243001,-209.036747,0.0002,2]
[403779942,1769536243011,-188.278276,0.0002,2]
[403779943,1769536243020,-209.036747,0.0002,2]
[403779944,1769536243029,-188.278276,0.0002,2]
[403779945,1769536243040,-209.036747,0.0002,2]
[403779946,1769536243053,-188.278276,0.0002,2]
[403779947,1769536243062,-209.036747,0.0002,2]
[403779948,1769536243071,-188.278276,0.0002,2]
[403779950,1769536243084,-209.036747,0.0002,2]
[403779951,1769536243093,-188.278276,0.0002,2]
[403779952,1769536243102,-209.036747,0.0002,2]
[403779953,1769536243111,-188.278276,0.0002,2]
[403779954,1769536243123,-209.036747,0.0002,2]
[403779955,1769536243131,-188.278276,0.0002,2]
[403779958,1769536243141,-188.278276,0.0002,2]
[403779960,1769536243152,-209.036747,0.0002,2]
[403779962,1769536243161,-209.036747,0.0002,2]
[403779964,1769536243171,-188.278276,0.0002,2]
[403779965,1769536243181,-188.278276,0.0002,2]
[403779966,1769536243191,-209.036747,0.0002,2]
[403779967,1769536243203,-188.278276,0.0002,2]
[403779968,1769536243214,-209.036747,0.0002,2]
[403779969,1769536243223,-188.278282,0.0002,2]
[403779970,1769536243232,-209.036747,0.0002,2]
[403779971,1769536243242,-209.036748,0.0002,2]
[403779972,1769536243251,-387.668637,0.0002,2]
[403779973,1769536243262,-387.668637,0.0002,2]
[403779974,1769536243271,-387.668637,0.0002,2]
[403779975,1769536243280,-387.668637,0.0002,2]
[403779976,1769536243290,-387.668637,0.0002,2]
[403779977,1769536243300,-500.0,0.00020003,2]
[403779978,1769536243309,-454.65002405,0.00020034,4]
[403779979,1769536243319,-500.0,0.000201,7]
[403779980,1769536243328,-250.0,0.000201,10]
[403779981,1769536243337,-168.0,0.00020176,2]
[403779982,1769536243347,-250.0,0.000202,10]
[403779983,1769536243356,-6427.66,0.00020204,2]
[403779984,1769536243365,-454.65002405,0.00020223,4]
[403779985,1769536243374,-168.0,0.00020248,2]
[403779986,1769536243383,-250.0,0.000203,10]
[403779987,1769536243392,-168.0,0.00020359,2]
[403779988,1769536243402,-168.0,0.00020365,2]
[403779989,1769536243411,-3066.646655,0.00020365,7]
[403779990,1769536243420,-681.104141,0.00020365,7]
[403779991,1769536243429,-250.0,0.000204,10]
[403779992,1769536243439,-454.65002405,0.00020412,4]
[403779993,1769536243448,-500.0,0.0002042,2]
[403779994,1769536243457,-500.0,0.0002042,2]
[403779995,1769536243466,-160.0,0.00020473,5]
[403779996,1769536243475,-179.68652294,0.00020473,5]
[403779997,1769536243484,-232.4084991,0.00020473,2]
[403779998,1769536243493,-153.0,0.00020473,2]
[403779999,1769536243502,-153.0,0.00020473,2]
[403780000,1769536243511,-250.0,0.000205,10]
[403780001,1769536243520,-582.521614,0.00020548,2]
[403780002,1769536243529,-232.61,0.0002059,2]
[403780003,1769536243538,-250.0,0.000206,10]
[403780004,1769536243548,-454.65002402,0.00020601,4]
[403780005,1769536243557,-1390.98205218,0.0002061,2]
[403780006,1769536243565,-194.6577276,0.0002066,2]
[403780007,1769536243575,-194.6577276,0.0002066,2]
[403780008,1769536243583,-194.6577276,0.0002066,2]
[403780009,1769536243592,-229.43752364,0.0002068,2]
[403780010,1769536243601,-250.0,0.000207,10]
[403780011,1769536243610,-8449.24999421,0.00020715,2]
[403780012,1769536243619,-5000.0,0.00020715,2]
[403780013,1769536243628,-5000.0,0.00020715,2]
[403780014,1769536243637,-5000.0,0.00020715,2]
[403780015,1769536243646,-5000.0,0.00020715,2]
[403780016,1769536243655,-250.0,0.000208,10]
[403780017,1769536243664,-250.0,0.000209,10]
[403780018,1769536243673,-168.0,0.00020966,2]
[403780019,1769536243682,-165.13470443,0.00020999,2]
[403780020,1769536243691,-900.0,0.00021,2]
[403780021,1769536243700,-277.70215979,0.00021,2]
[403780022,1769536243710,-50000.0,0.00021,2]
[403780023,1769536243719,-805.74771269,0.00021,5]
[403780024,1769536243727,-500.0,0.00021,7]
[403780025,1769536243737,-680.5694466,0.00021,7]
[403780026,1769536243747,-1000.0,0.00021,15]
[403780027,1769536243757,-3000.0,0.00021,2]
[403780028,1769536243766,-357.47,0.00021,2]
[403780029,1769536243776,-298.043263,0.00021,2]
[403780030,1769536243785,-298.043263,0.00021,2]
[403780031,1769536243795,-298.043263,0.00021,2]
[403780032,1769536243805,-298.043254,0.00021,2]
[403780033,1769536243815,-151.0,0.00021,2]
[403780034,1769536243825,-151.0,0.00021,2]
[403780035,1769536243834,-151.0,0.00021,2]
[403780036,1769536243843,-224.360219,0.00021,2]
[403780037,1769536243853,-224.360219,0.00021,2]
[403780038,1769536243862,-224.360219,0.00021,2]
[403780039,1769536243872,-224.360225,0.00021,2]
[403780040,1769536243882,-1422.757952,0.00021,2]
[403780041,1769536243891,-1422.757952,0.00021,2]
[403780042,1769536243901,-1422.757952,0.00021,2]
[403780043,1769536243911,-1422.757962,0.00021,2]
[403780044,1769536243920,-250.0,0.00021,10]
[403780045,1769536243928,-150.0,0.00021,2]
[403780046,1769536243938,-4262.748023,0.00021,2]
[403780047,1769536243947,-4262.748023,0.00021,2]
[403780048,1769536243957,-4262.748023,0.00021,2]
[403780049,1769536243967,-4262.748032,0.00021,2]
[403780050,1769536243977,-234.857749,0.00021,2]
[403780051,1769536243987,-283.72824,0.00021,2]
[403780052,1769536243996,-234.857749,0.00021,2]
[403780053,1769536244006,-234.857749,0.00021,2]
[403780054,1769536244015,-234.85775,0.00021,2]
[403780055,1769536244024,-151.0,0.00021,2]
[403780056,1769536244034,-151.0,0.00021,2]
[403780057,1769536244048,-151.0,0.00021,2]
[403780058,1769536244058,-167.664942,0.00021,2]
[403780059,1769536244067,-230.007319,0.00021,2]
[403780060,1769536244077,-230.007319,0.00021,2]
[403780061,1769536244087,-230.007319,0.00021,2]
[403780062,1769536244097,-230.007322,0.00021,2]
[403780063,1769536244107,-2000.0,0.00021,7]
[403780064,1769536244120,-3000.0,0.0002101,2]
[403780065,1769536244130,-52300.058269,0.00021011,3]
[403780066,1769536244154,-5478.94027118,0.00021011,3]
[403780067,1769536244166,-5605.46009379,0.00021011,3]
[403780068,1769536244177,-7086.57201083,0.00021011,3]
[403780069,1769536244190,-1222.41894543,0.00021011,3]
[403780070,1769536244204,-544.79095787,0.00021011,3]
[403780071,1769536244286,-387.668637,0.000196,2]
[403780072,1769536244295,-297.94385309,0.0002,2]
[403780073,1769536244393,-387.668637,0.000196,2]
[403780074,1769536244403,-47.331363,0.000196,2]
[403780099,1769536245817,-103.668637,0.000196,2]
[403780100,1769536245827,-151.0,0.000196,2]
[403780101,1769536245836,-89.72478391,0.0002,2]
[403780102,1769536245845,-387.668637,0.0002,2]
[403780103,1769536245855,-387.668637,0.0002,2]
[403780104,1769536245864,-387.668637,0.0002,2]
[403780105,1769536245874,-387.668637,0.0002,2]
[403780106,1769536245883,-387.668637,0.0002,2]
[403780107,1769536245892,-387.668637,0.0002,2]
[403780108,1769536245902,-387.668637,0.0002,2]
[403780109,1769536245911,-51.01556018,0.0002,2]
[403780110,1769536245922,-336.65307682,0.0002,2]
[403780111,1769536245931,-387.668637,0.0002,2]
[403780112,1769536245941,-387.668631,0.0002,2]
[403780113,1769536245950,-151.0,0.0002,2]
[403780114,1769536245960,-151.0,0.0002,2]
[403780115,1769536245969,-151.0,0.0002,2]
[403780116,1769536245978,-151.0,0.0002,2]
[403780117,1769536245987,-151.0,0.0002,2]
[403780118,1769536245997,-151.0,0.0002,2]
[403780119,1769536246006,-151.0,0.0002,2]
[403780120,1769536246015,-221.663576,0.0002,2]
[403780121,1769536246024,-114319.5440845,0.00021011,3]
[403780122,1769536246033,-151.0,0.00021011,2]
[403780124,1769536246045,-262.367391,0.00021011,2]
[403780126,1769536246054,-199.924162,0.00021011,2]
[403780127,1769536246063,-2618.982771,0.00021011,2]
[403780128,1769536246072,-199.924162,0.00021011,2]
[403780129,1769536246084,-2618.982771,0.00021011,2]
[403780130,1769536246094,-199.924162,0.00021011,2]
[403780131,1769536246104,-2618.982771,0.00021011,2]
[403780132,1769536246115,-199.924162,0.00021011,2]
[403780133,1769536246125,-2618.982779,0.00021011,2]
[403780134,1769536246134,-1110.572505,0.00021011,2]
[403780135,1769536246143,-1110.572505,0.00021011,2]
[403780136,1769536246153,-1110.572505,0.00021011,2]
[403780137,1769536246163,-1110.572498,0.00021011,2]
[403780138,1769536246173,-151.0,0.00021011,2]
[403780139,1769536246182,-151.0,0.00021011,2]
[403780140,1769536246193,-168.0,0.00021012,2]
[403780141,1769536246204,-168.0,0.0002102,2]
[403780142,1769536246215,-3000.0,0.0002102,2]
[403780143,1769536246224,-151.0,0.0002102,2]
[403780144,1769536246235,-151.0,0.0002102,2]
[403780145,1769536246244,-151.0,0.0002102,2]
[403780146,1769536246253,-151.0,0.0002102,2]
[403780147,1769536246262,-151.0,0.0002102,2]
[403780148,1769536246271,-151.0,0.0002102,2]
[403780149,1769536246280,-183.032175,0.0002102,2]
[403780150,1769536246290,-183.032175,0.0002102,2]
[403780151,1769536246299,-151.0,0.0002102,2]
[403780152,1769536246308,-183.032175,0.0002102,2]
[403780153,1769536246318,-183.03217235,0.0002102,2]
[403780154,1769536246327,-8783.56828,0.00021023,7]
[403780155,1769536246336,-168.0,0.00021027,2]
[403780156,1769536246345,-3000.0,0.0002103,2]
[403780157,1769536246355,-3000.0,0.0002104,2]
[403780158,1769536246364,-3000.0,0.0002105,2]
[403780159,1769536246373,-3000.0,0.0002106,2]
[403780160,1769536246383,-3000.0,0.0002107,2]
[403780161,1769536246392,-3000.0,0.0002108,2]
[403780162,1769536246402,-3000.0,0.0002109,2]
[403780163,1769536246412,-308.12601545,0.00021096,3]
[403780164,1769536246420,-3000.0,0.000211,2]
[403780165,1769536246430,-250.0,0.000211,10]
[403780166,1769536246439,-500.0,0.0002111,2]
[403780167,1769536246448,-332.362554,0.0002111,2]
[403780168,1769536246458,-3000.0,0.0002111,2]
[403780169,1769536246467,-3000.0,0.0002112,2]
[403780170,1769536246476,-1494.94541675,0.0002113,2]
[403780171,1769536246488,-1505.05458325,0.0002113,2]
[403780172,1769536246497,-3000.0,0.0002114,2]
[403780173,1769536246506,-3000.0,0.0002115,2]
[403780174,1769536246515,-168.0,0.0002115,2]
[403780175,1769536246524,-3000.0,0.0002116,2]
[403780176,1769536246532,-3000.0,0.0002117,2]
[403780177,1769536246541,-8179.44541675,0.00021178,7]
[403780178,1769536246552,-411.0,0.00021178,7]
[403780179,1769536355460,203.19270119,0.00030137,120]
[403780180,1769536355480,296.80729881,0.00030137,120]
[403780181,1769536455916,12064.3747282,0.00011075,2]
[403780182,1769536456139,165.60265351,0.00011502,2]
[403780183,1769536536000,10000.01,0.00011378,2]
[403780184,1769536536024,1513.9592216,0.00011378,2]
[403780185,1769536545625,4066.76776711,0.00011502,2]
[403780186,1769536633264,-336.0432331,0.00011684,2]
[403780187,1769536679685,-386.96,0.00011665,2]
[403780188,1769536771921,-382.03,0.00011539,2]
[403780189,1769536864356,-377.17,0.00011639,2]
[403780190,1769536948869,372.37,0.00011381,2]
[403780191,1769536987955,203.19270119,0.00030137,120]
[403780192,1769536987978,296.80729881,0.00030137,120]
[403780195,1769537033415,367.63,0.0001144,2]
[403780196,1769537116937,362.95,0.0001133,2]
[403780199,1769537199913,358.33,0.00011366,2]
[403780200,1769537224058,1698.0,0.00034935,120]
[403780201,1769537229237,-865.0531369,0.00011834,2]
[403780202,1769537229259,-37.38349464,0.00011953,2]
[403780203,1769537283029,353.77,0.00011365,2]
[403780204,1769537366896,412.9,0.00011299,2]
[403780206,1769537411659,7772.06,0.00011397,2]
[403780207,1769537411680,213.1579824,0.00011397,2]
[403780225,1769537431768,-300.0,0.00011953,2]
[403780227,1769537431778,-420.0,0.00011953,2]
[403780229,1769537431792,-168.0,0.00011953,2]
[403780232,1769537431803,-338.36959954,0.00011954,2]
[403780234,1769537431814,-6290.12985533,0.00011954,2]
[403780236,1769537431824,-150.21054513,0.00011954,2]
[403780238,1769537431836,-349.78945487,0.00011954,2]
[403780240,1769537431845,-115.81319864,0.00011954,2]
[403780242,1769537431857,-384.18680136,0.00011954,2]
[403780244,1769537431867,-500.0,0.00011954,2]
[403780247,1769537431878,-193.14235246,0.00011954,2]
[403780249,1769537431890,-306.85764754,0.00011954,2]
[403780251,1769537431900,-500.0,0.00011954,2]
[403780253,1769537431911,-500.0,0.00011954,2]
[403780255,1769537431922,-500.0,0.00011954,2]
[403780256,1769537431934,-500.0,0.00011954,2]
[403780257,1769537431944,-500.0,0.00011954,2]
[403780258,1769537431956,-370.03335697,0.00011954,2]
[403780259,1769537431966,-500.0,0.00011954,2]
[403780260,1769537431976,-500.0,0.00011954,2]
[403780261,1769537431986,-500.0,0.00011954,2]
[403780262,1769537431996,-500.0,0.00011954,2]
[403780263,1769537432007,-500.0,0.00011954,2]
[403780264,1769537432017,-500.0,0.00011954,2]
[403780265,1769537432029,-500.0,0.00011954,2]
[403780266,1769537432039,-500.0,0.00011954,2]
[403780267,1769537432051,-500.0,0.00011954,2]
[403780268,1769537432064,-500.0,0.00011954,2]
[403780269,1769537432075,-313.72358951,0.00011954,2]
[403780270,1769537432085,-486.60368304,0.00011954,2]
[403780271,1769537432095,-581.29945468,0.00011954,2]
[403780272,1769537432105,-178.08023639,0.00011954,2]
[403780273,1769537432115,-565.61033545,0.00011954,2]
[403780274,1769537432126,-500.0,0.00011954,2]
[403780275,1769537432137,-500.0,0.00011954,2]
[403780276,1769537432147,-500.0,0.00011954,2]
[403780277,1769537432157,-500.0,0.00011954,2]
[403780278,1769537432168,-500.0,0.00011954,2]
[403780279,1769537432178,-374.65301962,0.00011955,2]
[403780280,1769537432189,-500.0,0.00011955,2]
[403780281,1769537432203,-500.0,0.00011955,2]
[403780282,1769537432214,-218.66942558,0.00012094,2]
[403780283,1769537432224,-500.0,0.00012194,2]
[403780284,1769537432234,-300.0,0.00012194,2]
[403780285,1769537432244,-300.0,0.00012194,2]
[403780286,1769537432255,-300.0,0.00012194,2]
[403780287,1769537432265,-300.0,0.00012194,2]
[403780288,1769537432275,-300.0,0.00012194,2]
[403780289,1769537432285,-300.0,0.00012194,2]
[403780290,1769537432296,-300.0,0.00012194,2]
[403780291,1769537432306,-300.0,0.00012194,2]
[403780292,1769537432317,-300.0,0.00012194,2]
[403780293,1769537432326,-300.0,0.00012194,2]
[403780294,1769537432336,-300.0,0.00012194,2]
[403780295,1769537432347,-300.0,0.00012194,2]
[403780296,1769537432358,-300.0,0.00012194,2]
[403780297,1769537432369,-300.0,0.00012194,2]
[403780298,1769537432380,-300.0,0.00012194,2]
[403780299,1769537432390,-600.0,0.00012194,2]
[403780300,1769537432400,-825.79,0.00012327,2]
[403780301,1769537432410,-6971.64893294,0.000129,2]
[403780302,1769537432419,-420.0,0.00013122,2]
[403780303,1769537432429,-284.04326702,0.00013273,2]
[403780304,1769537432439,-500.0,0.00013273,2]
[403780305,1769537432454,-500.0,0.00013273,2]
[403780306,1769537432468,-500.0,0.00013273,2]
[403780307,1769537432478,-500.0,0.00013273,2]
[403780308,1769537432488,-500.0,0.00013273,2]
[403780309,1769537432498,-500.0,0.00013273,2]
[403780310,1769537432510,-500.0,0.00013273,2]
[403780311,1769537432520,-500.0,0.00013273,2]
[403780312,1769537432533,-500.0,0.00013273,2]
[403780313,1769537432543,-500.0,0.00013273,2]
[403780314,1769537432554,-500.0,0.00013273,2]
[403780315,1769537432564,-302.08825533,0.00013273,2]
[403780316,1769537432575,-500.0,0.00013273,2]
[403780317,1769537432586,-500.0,0.00013273,2]
[403780318,1769537432596,-238.65486629,0.00013273,2]
[403780319,1769537432607,-226.04161405,0.00013273,2]
[403780320,1769537432617,-500.0,0.00013273,2]
[403780321,1769537432627,-500.0,0.00013273,2]
[403780322,1769537432638,-500.0,0.00013273,2]
[403780323,1769537432648,-500.0,0.00013273,2]
[403780324,1769537432658,-500.0,0.00013273,2]
[403780325,1769537432668,-500.0,0.00013273,2]
[403780326,1769537432679,-500.0,0.00013273,2]
[403780327,1769537432689,-622.96707627,0.00013273,2]
[403780328,1769537432700,-500.0,0.00013273,2]
[403780329,1769537432711,-1238.69,0.00013354,2]
[403780330,1769537432721,-720.0,0.00013413,2]
[403780331,1769537432731,-201.23226476,0.00013673,2]
[403780332,1769537432742,-300.0,0.00013673,2]
[403780333,1769537432751,-500.0,0.00013698,2]
[403780334,1769537432761,-500.0,0.00013698,2]
[403780335,1769537432772,-500.0,0.00013698,2]
[403780336,1769537432782,-500.0,0.00013698,2]
[403780337,1769537432793,-500.0,0.00013698,2]
[403780338,1769537432804,-500.0,0.00013698,2]
[403780339,1769537432816,-500.0,0.00013698,2]
[403780340,1769537432827,-500.0,0.00013698,2]
[403780341,1769537432837,-500.0,0.00013698,2]
[403780342,1769537432848,-500.0,0.00013698,2]
[403780343,1769537432860,-694.17,0.00013698,2]
[403780344,1769537432873,-694.17,0.00013698,2]
[403780345,1769537432883,-694.17,0.00013698,2]
[403780346,1769537432893,-694.17,0.00013698,2]
[403780347,1769537432903,-694.17,0.00013698,2]
[403780348,1769537432913,-694.17,0.00013698,2]
[403780349,1769537432923,-694.17,0.00013698,2]
[403780350,1769537432933,-694.17,0.00013698,2]
[403780351,1769537432943,-694.17,0.00013698,2]
[403780352,1769537432953,-694.17,0.00013698,2]
[403780353,1769537432963,-500.0,0.00013698,2]
[403780354,1769537432972,-186.52448351,0.00013698,2]
[403780355,1769537432982,-813.08,0.00013698,2]
[403780356,1769537432992,-1000.0,0.00013698,2]
[403780357,1769537433003,-813.08,0.00013698,2]
[403780358,1769537433013,-813.08,0.00013698,2]
[403780359,1769537433216,-813.08,0.00013698,2]
[403780360,1769537433234,-1000.0,0.00013698,2]
[403780361,1769537433245,-813.08,0.00013698,2]
[403780362,1769537433255,-813.08,0.00013698,2]
[403780363,1769537433265,-813.08,0.00013698,2]
[403780364,1769537433274,-813.08,0.00013698,2]
[403780365,1769537433283,-813.08,0.00013698,2]
[403780366,1769537433293,-1000.0,0.00013698,2]
[403780367,1769537433301,-813.08,0.00013698,2]
[403780368,1769537433311,-1000.0,0.00013698,2]
[403780369,1769537433320,-813.08,0.00013698,2]
[403780370,1769537433330,-1000.0,0.00013698,2]
[403780371,1769537433339,-813.08,0.00013698,2]
[403780372,1769537433348,-941.13251238,0.00013698,2]
[403780373,1769537433358,-813.08,0.00013698,2]
[403780374,1769537433367,-813.08,0.00013698,2]
[403780375,1769537433377,-813.08,0.00013698,2]
[403780376,1769537433386,-813.08,0.00013698,2]
[403780377,1769537433395,-813.08,0.00013698,2]
[403780378,1769537433404,-813.08,0.00013698,2]
[403780379,1769537433413,-813.08,0.00013698,2]
[403780380,1769537433423,-813.08,0.00013698,2]
[403780381,1769537433432,-813.08,0.00013698,2]
[403780382,1769537433442,-813.08,0.00013698,2]
[403780383,1769537433454,-813.08,0.00013698,2]
[403780384,1769537433464,-813.08418364,0.00013698,2]
[403780385,1769537433475,-500.0,0.00013698,2]
[403780386,1769537433484,-500.0,0.00013698,2]
[403780387,1769537433494,-500.0,0.00013698,2]
[403780388,1769537433503,-500.0,0.00013698,2]
[403780389,1769537433512,-500.0,0.00013698,2]
[403780390,1769537433522,-500.0,0.00013698,2]
[403780391,1769537433531,-500.0,0.00013698,2]
[403780392,1769537433541,-500.0,0.00013698,2]
[403780393,1769537433551,-500.0,0.00013698,2]
[403780394,1769537433561,-500.0,0.00013698,2]
[403780395,1769537433570,-500.0,0.00013698,2]
[403780396,1769537433580,-500.0,0.00013698,2]
[403780397,1769537433590,-500.0,0.00013698,2]